[Event "*** Titled Tuesday Blitz"]
[Site "Chess.com"]
[Date "2020.12.01"]
[Round "11"]
[White "Kildepiotr"]
[Black "AldokhinIvan"]
[Result "0-1"]
[WhiteElo "2628"]
[BlackElo "2518"]
[TimeControl "180+1"]
[EndTime "12:05:55 PST"]
[Termination "AldokhinIvan won by resignation"]

1. Nf3 {[%clk 0:03:00.9]} 1... Nf6 {[%clk 0:02:57.7]} 2. g3 {[%clk 0:02:58.2]}
2... g6 {[%clk 0:02:57.6]} 3. Bg2 {[%clk 0:02:58.7]} 3... Bg7 {[%clk 0:02:58.1]}
4. O-O {[%clk 0:02:59.4]} 4... O-O {[%clk 0:02:57.6]} 5. d4 {[%clk 0:02:59]}
5... d6 {[%clk 0:02:56.6]} 6. Nbd2 {[%clk 0:02:58]} 6... Nc6 {[%clk 0:02:50.4]}
7. e4 {[%clk 0:02:57.5]} 7... e5 {[%clk 0:02:50.4]} 8. dxe5 {[%clk 0:02:58.4]}
8... Ne7 {[%clk 0:02:51]} 9. exf6 {[%clk 0:02:57.9]} 9... Bxf6 {[%clk
0:02:51.6]} 10. Qe2 {[%clk 0:02:54.3]} 10... Bg7 {[%clk 0:02:51.4]} 11. Nc4
{[%clk 0:02:53.9]} 11... Bg4 {[%clk 0:02:41.5]} 12. h3 {[%clk 0:02:53.1]} 12...
Bd7 {[%clk 0:02:41.1]} 13. Rd1 {[%clk 0:02:51.3]} 13... Qc8 {[%clk 0:02:36.2]}
14. Kh2 {[%clk 0:02:51.7]} 14... Nc6 {[%clk 0:02:36.6]} 15. Ne3 {[%clk
0:02:48.6]} 15... Re8 {[%clk 0:02:35.4]} 16. Qd3 {[%clk 0:02:37.6]} 16... a5
{[%clk 0:02:31]} 17. c3 {[%clk 0:02:37.4]} 17... a4 {[%clk 0:02:28.5]} 18. Nd5
{[%clk 0:02:37]} 18... f5 {[%clk 0:02:24]} 19. Nd4 {[%clk 0:02:20.2]} 19... fxe4
{[%clk 0:02:13.9]} 20. Bxe4 {[%clk 0:02:19.1]} 20... Ne5 {[%clk 0:02:11.3]} 21.
Qc2 {[%clk 0:02:15.7]} 21... Bxh3 {[%clk 0:02:09.1]} 22. Nxc7 {[%clk 0:02:11]}
22... Ng4+ {[%clk 0:02:01.7]} 23. Kg1 {[%clk 0:02:10.6]} 23... Qxc7 {[%clk
0:01:57.8]} 24. Bf4 {[%clk 0:02:05.1]} 24... Qc5 {[%clk 0:01:29.1]} 25. Rd2
{[%clk 0:01:49.7]} 25... Rf8 {[%clk 0:00:59]} 26. Ne6 {[%clk 0:01:45.6]} 26...
Qh5 {[%clk 0:00:51.1]} 27. Nxf8 {[%clk 0:01:40.5]} 27... Rxf8 {[%clk 0:00:52]}
28. Rd5 {[%clk 0:01:32.5]} 28... Be5 {[%clk 0:00:49.2]} 29. Bf3 {[%clk
0:01:15.1]} 29... Bg2 {[%clk 0:00:22.8]} 30. Bxg2 {[%clk 0:01:13.5]} 30... Qh2+
{[%clk 0:00:19.9]} 31. Kf1 {[%clk 0:01:13.6]} 31... Bxf4 {[%clk 0:00:20]} 32.
gxf4 {[%clk 0:01:08.8]} 32... Rxf4 {[%clk 0:00:20.3]} 33. Re1 {[%clk 0:01:06.2]}
33... Qg3 {[%clk 0:00:09.2]} 34. Rd2 {[%clk 0:01:00.2]} 34... Nh2+ {[%clk
0:00:08.3]} 35. Ke2 {[%clk 0:00:59.5]} 35... Qxg2 {[%clk 0:00:07.8]} 36. Qd3
{[%clk 0:00:52.4]} 36... Nf3 {[%clk 0:00:06.6]} 37. Qd5+ {[%clk 0:00:51.6]}
37... Kg7 {[%clk 0:00:06.5]} 38. Kd1 {[%clk 0:00:50.4]} 38... Nxe1 {[%clk
0:00:06.2]} 39. Qxd6 {[%clk 0:00:47.1]} 39... Qf3+ {[%clk 0:00:04.8]} 40. Kc1
{[%clk 0:00:44]} 40... Ng2 {[%clk 0:00:04.3]} 41. Qe5+ {[%clk 0:00:41.9]} 41...
Kh6 {[%clk 0:00:04.4]} 42. Rd5 {[%clk 0:00:37.3]} 42... Qe4 {[%clk 0:00:04]} 43.
Qg5+ {[%clk 0:00:36.8]} 43... Kg7 {[%clk 0:00:04.5]} 44. Rd7+ {[%clk 0:00:36]}
44... Rf7 {[%clk 0:00:04.7]} 45. Rd8 {[%clk 0:00:32.3]} 45... Qe1+ {[%clk
0:00:04.1]} 46. Kc2 {[%clk 0:00:32.1]} 46... Rxf2+ {[%clk 0:00:04.2]} 0-1

[Event "*** Titled Tuesday Blitz"]
[Site "Chess.com"]
[Date "2020.12.01"]
[Round "11"]
[White "banane_verte"]
[Black "Ladislav1969"]
[Result "1/2-1/2"]
[WhiteElo "2493"]
[BlackElo "2381"]
[TimeControl "180+1"]
[EndTime "12:05:55 PST"]
[Termination "Game drawn by repetition"]

1. e4 {[%clk 0:03:00.9]} 1... c5 {[%clk 0:02:59.4]} 2. Nc3 {[%clk 0:03:00.9]}
2... e6 {[%clk 0:03:00.3]} 3. g3 {[%clk 0:02:57.3]} 3... g6 {[%clk 0:02:59.3]}
4. Bg2 {[%clk 0:02:56.9]} 4... Bg7 {[%clk 0:02:59.5]} 5. d3 {[%clk 0:02:57.8]}
5... Nc6 {[%clk 0:02:59.6]} 6. Be3 {[%clk 0:02:58.1]} 6... Nd4 {[%clk
0:02:59.9]} 7. Nge2 {[%clk 0:02:57.8]} 7... Ne7 {[%clk 0:02:59.8]} 8. O-O {[%clk
0:02:57.5]} 8... O-O {[%clk 0:02:57.4]} 9. Qd2 {[%clk 0:02:57.4]} 9... Qa5
{[%clk 0:02:55.6]} 10. Qc1 {[%clk 0:02:12.4]} 10... d5 {[%clk 0:02:49.9]} 11.
exd5 {[%clk 0:02:10.8]} 11... exd5 {[%clk 0:02:35.9]} 12. Bh6 {[%clk 0:02:09.7]}
12... Bxh6 {[%clk 0:02:28]} 13. Qxh6 {[%clk 0:02:10.6]} 13... Nxc2 {[%clk
0:02:27.9]} 14. Rac1 {[%clk 0:02:04]} 14... Nb4 {[%clk 0:02:22.5]} 15. Qg5
{[%clk 0:01:55.5]} 15... f6 {[%clk 0:01:53.8]} 16. Qd2 {[%clk 0:01:45]} 16...
Nxa2 {[%clk 0:01:21.1]} 17. Ra1 {[%clk 0:01:38.4]} 17... d4 {[%clk 0:01:21.5]}
18. Rxa2 {[%clk 0:01:26.5]} 18... dxc3 {[%clk 0:01:21.8]} 19. bxc3 {[%clk
0:01:24.3]} 19... Qc7 {[%clk 0:01:20.6]} 20. Rfa1 {[%clk 0:01:21.7]} 20... Nc6
{[%clk 0:01:14.9]} 21. d4 {[%clk 0:01:16.8]} 21... cxd4 {[%clk 0:01:04.3]} 22.
cxd4 {[%clk 0:01:17.1]} 22... Rd8 {[%clk 0:01:00.8]} 23. d5 {[%clk 0:01:15.1]}
23... Ne5 {[%clk 0:00:58.3]} 24. Rxa7 {[%clk 0:01:06.9]} 24... Rxa7 {[%clk
0:00:57.8]} 25. Rxa7 {[%clk 0:01:07.8]} 25... Bg4 {[%clk 0:00:57.9]} 26. Nf4
{[%clk 0:01:03.4]} 26... Nf3+ {[%clk 0:00:50.9]} 27. Bxf3 {[%clk 0:01:03.1]}
27... Bxf3 {[%clk 0:00:51.4]} 28. Ra1 {[%clk 0:00:43.5]} 28... Qe5 {[%clk
0:00:47.7]} 29. Re1 {[%clk 0:00:35.8]} 29... Qf5 {[%clk 0:00:47]} 30. d6 {[%clk
0:00:21.9]} 30... g5 {[%clk 0:00:39.5]} 31. Ng2 {[%clk 0:00:21.7]} 31... Qd5
{[%clk 0:00:34.5]} 32. Qxd5+ {[%clk 0:00:20.7]} 32... Bxd5 {[%clk 0:00:34]} 33.
Rd1 {[%clk 0:00:17]} 33... Bxg2 {[%clk 0:00:32.5]} 34. Kxg2 {[%clk 0:00:17.9]}
34... Kf7 {[%clk 0:00:31]} 35. Kf3 {[%clk 0:00:15.6]} 35... Ke6 {[%clk
0:00:31.1]} 36. Rb1 {[%clk 0:00:12]} 36... Rd7 {[%clk 0:00:31.4]} 37. Rb6 {[%clk
0:00:11.2]} 37... Kd5 {[%clk 0:00:30]} 38. Kg4 {[%clk 0:00:10.5]} 38... Kc5
{[%clk 0:00:29.9]} 39. Rb2 {[%clk 0:00:10.3]} 39... Kxd6 {[%clk 0:00:28.6]} 40.
Kf5 {[%clk 0:00:09]} 40... Ke7 {[%clk 0:00:22.4]} 41. Rb6 {[%clk 0:00:07.5]}
41... Rd5+ {[%clk 0:00:20.7]} 42. Ke4 {[%clk 0:00:06.2]} 42... Rd7 {[%clk
0:00:21.6]} 43. Kf5 {[%clk 0:00:05.7]} 43... Rd5+ {[%clk 0:00:20.4]} 44. Ke4
{[%clk 0:00:05.9]} 44... Rd7 {[%clk 0:00:18.9]} 45. Kf5 {[%clk 0:00:06.1]}
1/2-1/2

[Event "*** Titled Tuesday Blitz"]
[Site "Chess.com"]
[Date "2020.12.01"]
[Round "11"]
[White "Micki-taryan"]
[Black "AlexTriapishko"]
[Result "0-1"]
[WhiteElo "2993"]
[BlackElo "2819"]
[TimeControl "180+1"]
[EndTime "12:05:56 PST"]
[Termination "AlexTriapishko won by resignation"]

1. b3 {[%clk 0:03:00.9]} 1... Nf6 {[%clk 0:02:56.6]} 2. Bb2 {[%clk 0:03:01.8]}
2... g6 {[%clk 0:02:57.5]} 3. Nf3 {[%clk 0:03:01.8]} 3... Bg7 {[%clk 0:02:57.7]}
4. e3 {[%clk 0:03:02.7]} 4... O-O {[%clk 0:02:57.1]} 5. Be2 {[%clk 0:03:02.6]}
5... b6 {[%clk 0:02:52.9]} 6. c4 {[%clk 0:03:02.5]} 6... Bb7 {[%clk 0:02:53.4]}
7. Nc3 {[%clk 0:03:03]} 7... c5 {[%clk 0:02:54]} 8. O-O {[%clk 0:03:02.4]} 8...
d5 {[%clk 0:02:52.7]} 9. cxd5 {[%clk 0:02:56.7]} 9... Nxd5 {[%clk 0:02:53]} 10.
Qc1 {[%clk 0:02:56.5]} 10... Nb4 {[%clk 0:02:51]} 11. d4 {[%clk 0:02:50.8]}
11... cxd4 {[%clk 0:02:47.1]} 12. Nxd4 {[%clk 0:02:43.1]} 12... N8c6 {[%clk
0:02:42.3]} 13. Nxc6 {[%clk 0:02:39.9]} 13... Nxc6 {[%clk 0:02:35.8]} 14. Rd1
{[%clk 0:02:35.5]} 14... Qb8 {[%clk 0:02:32.6]} 15. Nd5 {[%clk 0:02:31.5]} 15...
Rc8 {[%clk 0:02:11.3]} 16. Bxg7 {[%clk 0:02:28.8]} 16... Kxg7 {[%clk 0:02:12.2]}
17. Qb2+ {[%clk 0:02:28.6]} 17... Qe5 {[%clk 0:02:09.4]} 18. Qa3 {[%clk
0:02:20]} 18... Rd8 {[%clk 0:01:38]} 19. Bf3 {[%clk 0:02:10.8]} 19... e6 {[%clk
0:01:34.1]} 20. Nf4 {[%clk 0:02:08]} 20... Rxd1+ {[%clk 0:01:19]} 21. Rxd1
{[%clk 0:02:08.9]} 21... Rd8 {[%clk 0:01:19.3]} 22. Rc1 {[%clk 0:01:57.2]} 22...
Rd7 {[%clk 0:00:53.2]} 23. h4 {[%clk 0:01:52.1]} 23... Ne7 {[%clk 0:00:43.4]}
24. Qxa7 {[%clk 0:01:46.8]} 24... Qa5 {[%clk 0:00:39.8]} 25. Qxa5 {[%clk
0:01:41.5]} 25... bxa5 {[%clk 0:00:40.7]} 26. Bxb7 {[%clk 0:01:41.1]} 26... Rxb7
{[%clk 0:00:41.6]} 27. Rc5 {[%clk 0:01:39.4]} 27... a4 {[%clk 0:00:39.3]} 28.
bxa4 {[%clk 0:01:40.3]} 28... Rb1+ {[%clk 0:00:38.5]} 29. Kh2 {[%clk 0:01:40.4]}
29... Rb2 {[%clk 0:00:39.2]} 30. Nd3 {[%clk 0:01:37.9]} 30... Rxa2 {[%clk
0:00:39.2]} 31. a5 {[%clk 0:01:37.8]} 31... Nf5 {[%clk 0:00:35.6]} 32. Kh3
{[%clk 0:01:34.5]} 32... h5 {[%clk 0:00:28.2]} 33. g3 {[%clk 0:01:26.6]} 33...
Nd6 {[%clk 0:00:27.5]} 34. Nb4 {[%clk 0:01:24.2]} 34... Ra4 {[%clk 0:00:20.1]}
35. Nc6 {[%clk 0:01:24.3]} 35... Ra2 {[%clk 0:00:16.5]} 36. f3 {[%clk
0:01:21.9]} 36... Ra3 {[%clk 0:00:14]} 37. Rc2 {[%clk 0:01:02.1]} 37... Nb7
{[%clk 0:00:11.9]} 38. Ne5 {[%clk 0:00:54.3]} 38... Rxa5 {[%clk 0:00:08.6]} 39.
Nxf7 {[%clk 0:00:54]} 39... Kxf7 {[%clk 0:00:09.1]} 40. Rc7+ {[%clk 0:00:54.2]}
40... Kf6 {[%clk 0:00:10]} 41. Rxb7 {[%clk 0:00:54.7]} 41... Ra3 {[%clk
0:00:09.9]} 42. g4 {[%clk 0:00:47.9]} 42... hxg4+ {[%clk 0:00:09.2]} 43. Kxg4
{[%clk 0:00:47.9]} 43... Rxe3 {[%clk 0:00:09.3]} 44. Kf4 {[%clk 0:00:47]} 44...
Ra3 {[%clk 0:00:08.3]} 45. Rb8 {[%clk 0:00:47.1]} 45... Ra4+ {[%clk 0:00:08.5]}
46. Kg3 {[%clk 0:00:47.6]} 46... Ra5 {[%clk 0:00:08.7]} 47. Rf8+ {[%clk
0:00:48]} 47... Kg7 {[%clk 0:00:09]} 48. Rc8 {[%clk 0:00:48.9]} 48... Kf7 {[%clk
0:00:09.3]} 49. Rc7+ {[%clk 0:00:48.5]} 49... Kf6 {[%clk 0:00:09.8]} 50. Rh7
{[%clk 0:00:49]} 50... Ra4 {[%clk 0:00:09.8]} 51. Rh6 {[%clk 0:00:49.3]} 51...
Kg7 {[%clk 0:00:09.6]} 0-1

[Event "*** Titled Tuesday Blitz"]
[Site "Chess.com"]
[Date "2020.12.01"]
[Round "11"]
[White "MartinMatthiesen"]
[Black "Kovalchuk94"]
[Result "0-1"]
[WhiteElo "2419"]
[BlackElo "2575"]
[TimeControl "180+1"]
[EndTime "12:05:56 PST"]
[Termination "Kovalchuk94 won by resignation"]

1. d4 {[%clk 0:02:53]} 1... d5 {[%clk 0:02:59.5]} 2. c4 {[%clk 0:02:52]} 2... e6
{[%clk 0:02:59.6]} 3. Nc3 {[%clk 0:02:51.2]} 3... Nf6 {[%clk 0:02:59.6]} 4. cxd5
{[%clk 0:02:49.3]} 4... exd5 {[%clk 0:02:59.5]} 5. Bg5 {[%clk 0:02:48.6]} 5...
c6 {[%clk 0:02:59.7]} 6. e3 {[%clk 0:02:48.5]} 6... Be7 {[%clk 0:02:59.5]} 7.
Bd3 {[%clk 0:02:48]} 7... Nbd7 {[%clk 0:02:59.2]} 8. Nge2 {[%clk 0:02:45.4]}
8... h6 {[%clk 0:02:59.3]} 9. Bh4 {[%clk 0:02:45.1]} 9... O-O {[%clk 0:02:58.9]}
10. O-O {[%clk 0:02:44.4]} 10... Re8 {[%clk 0:02:55]} 11. f3 {[%clk 0:02:42.3]}
11... b5 {[%clk 0:02:37.3]} 12. e4 {[%clk 0:02:33.5]} 12... b4 {[%clk
0:02:37.2]} 13. Na4 {[%clk 0:02:32.4]} 13... dxe4 {[%clk 0:02:36.9]} 14. fxe4
{[%clk 0:02:32.1]} 14... Nxe4 {[%clk 0:02:36.6]} 15. Bxe4 {[%clk 0:02:28.2]}
15... Bxh4 {[%clk 0:02:36.2]} 16. Bxc6 {[%clk 0:02:28]} 16... Ba6 {[%clk
0:02:32.3]} 17. Qb3 {[%clk 0:01:45.2]} 17... Bf6 {[%clk 0:02:05.3]} 18. Bxa8
{[%clk 0:01:22]} 18... Bxe2 {[%clk 0:01:47.2]} 19. Bd5 {[%clk 0:01:17.4]} 19...
Re7 {[%clk 0:01:27.8]} 20. Rfe1 {[%clk 0:01:07.4]} 20... Bxd4+ {[%clk
0:01:27.1]} 21. Kh1 {[%clk 0:01:05.9]} 21... Qf8 {[%clk 0:01:12.5]} 22. Qxb4
{[%clk 0:00:36.1]} 22... Bf2 {[%clk 0:01:06.6]} 23. Rec1 {[%clk 0:00:19.1]}
23... Nf6 {[%clk 0:01:04.7]} 24. Bc6 {[%clk 0:00:17.7]} 24... Ng4 {[%clk
0:01:01.4]} 25. h3 {[%clk 0:00:16.8]} 25... Ne5 {[%clk 0:00:53.6]} 26. Qd2
{[%clk 0:00:15.8]} 26... Nd3 {[%clk 0:00:43.9]} 27. Rc3 {[%clk 0:00:13.4]} 27...
Nb4 {[%clk 0:00:27.9]} 28. Bf3 {[%clk 0:00:11]} 28... Bxf3 {[%clk 0:00:20.8]}
29. Qxf2 {[%clk 0:00:11.2]} 29... Be4 {[%clk 0:00:17.6]} 30. Re1 {[%clk
0:00:11.2]} 30... Nd3 {[%clk 0:00:17]} 31. Rxd3 {[%clk 0:00:10.9]} 31... Bxd3
{[%clk 0:00:17.5]} 32. Nc5 {[%clk 0:00:11.2]} 32... Rxe1+ {[%clk 0:00:17]} 33.
Qxe1 {[%clk 0:00:10.9]} 33... Qxc5 {[%clk 0:00:17.2]} 34. Qe8+ {[%clk
0:00:10.3]} 34... Kh7 {[%clk 0:00:17.2]} 35. Kh2 {[%clk 0:00:10.1]} 35... Qd6+
{[%clk 0:00:16.7]} 36. Kg1 {[%clk 0:00:09.4]} 36... Qd4+ {[%clk 0:00:16]} 37.
Kh2 {[%clk 0:00:09.2]} 37... Qxb2 {[%clk 0:00:15.5]} 38. Qe3 {[%clk 0:00:08.8]}
38... Bg6 {[%clk 0:00:13.7]} 39. Qxa7 {[%clk 0:00:08.8]} 39... Be4 {[%clk
0:00:11.2]} 40. Qg1 {[%clk 0:00:09.3]} 40... Qxa2 {[%clk 0:00:10.9]} 41. Kg3
{[%clk 0:00:07.6]} 41... Qxg2+ {[%clk 0:00:10.6]} 42. Qxg2 {[%clk 0:00:07.7]}
42... Bxg2 {[%clk 0:00:11.5]} 0-1

[Event "*** Titled Tuesday Blitz"]
[Site "Chess.com"]
[Date "2020.12.01"]
[Round "11"]
[White "Man-Chuk"]
[Black "NewBornNow"]
[Result "1-0"]
[WhiteElo "2869"]
[BlackElo "2711"]
[TimeControl "180+1"]
[EndTime "12:05:57 PST"]
[Termination "Man-Chuk won by resignation"]

1. c4 {[%clk 0:02:50.7]} 1... e5 {[%clk 0:02:59.3]} 2. Nc3 {[%clk 0:02:50.6]}
2... Nf6 {[%clk 0:02:58.7]} 3. Nf3 {[%clk 0:02:51]} 3... Nc6 {[%clk 0:02:57.9]}
4. e3 {[%clk 0:02:51.5]} 4... Bb4 {[%clk 0:02:57.4]} 5. Nd5 {[%clk 0:02:51.7]}
5... a5 {[%clk 0:02:56.8]} 6. a3 {[%clk 0:02:45.7]} 6... Be7 {[%clk 0:02:53.2]}
7. d3 {[%clk 0:02:41.2]} 7... d6 {[%clk 0:02:52.3]} 8. Nxe7 {[%clk 0:02:35]}
8... Qxe7 {[%clk 0:02:48.1]} 9. b3 {[%clk 0:02:35.3]} 9... O-O {[%clk
0:02:47.5]} 10. Bb2 {[%clk 0:02:35.2]} 10... Bg4 {[%clk 0:02:43.6]} 11. Be2
{[%clk 0:02:35.1]} 11... Rfd8 {[%clk 0:02:38.5]} 12. h3 {[%clk 0:02:34]} 12...
Bh5 {[%clk 0:02:38]} 13. O-O {[%clk 0:02:26.6]} 13... d5 {[%clk 0:02:36.4]} 14.
cxd5 {[%clk 0:02:21.1]} 14... Rxd5 {[%clk 0:02:35.9]} 15. Qc2 {[%clk 0:02:15.9]}
15... Rad8 {[%clk 0:02:31.9]} 16. Rac1 {[%clk 0:02:05.4]} 16... Bg6 {[%clk
0:02:13.2]} 17. Rfd1 {[%clk 0:01:59]} 17... e4 {[%clk 0:02:08.9]} 18. Bxf6
{[%clk 0:01:50.5]} 18... gxf6 {[%clk 0:02:05.2]} 19. dxe4 {[%clk 0:01:34.6]}
19... Rxd1+ {[%clk 0:02:03.7]} 20. Rxd1 {[%clk 0:01:34.4]} 20... Rxd1+ {[%clk
0:02:02.3]} 21. Qxd1 {[%clk 0:01:30.1]} 21... Qxa3 {[%clk 0:02:02.2]} 22. Bc4
{[%clk 0:01:12.1]} 22... Qe7 {[%clk 0:01:44.3]} 23. Bd5 {[%clk 0:00:47.5]} 23...
Bxe4 {[%clk 0:01:33.3]} 24. Bxe4 {[%clk 0:00:48.4]} 24... Qxe4 {[%clk
0:01:32.8]} 25. Qd7 {[%clk 0:00:49]} 25... Ne5 {[%clk 0:01:05.6]} 26. Qc8+
{[%clk 0:00:48.7]} 26... Kg7 {[%clk 0:01:04.8]} 27. Nd4 {[%clk 0:00:49.6]} 27...
f5 {[%clk 0:00:59.3]} 28. Nxf5+ {[%clk 0:00:46.4]} 28... Kf6 {[%clk 0:00:58]}
29. Nd4 {[%clk 0:00:46.4]} 29... Ng6 {[%clk 0:00:44.3]} 30. Qxc7 {[%clk
0:00:37.2]} 30... h5 {[%clk 0:00:42.6]} 31. Qxa5 {[%clk 0:00:30.5]} 31... Nh4
{[%clk 0:00:38.8]} 32. Qd8+ {[%clk 0:00:30]} 32... Kg6 {[%clk 0:00:36.6]} 33.
Qg8+ {[%clk 0:00:29.3]} 33... Kf6 {[%clk 0:00:35.9]} 34. Qg3 {[%clk 0:00:26.1]}
34... Qb1+ {[%clk 0:00:32.9]} 35. Kh2 {[%clk 0:00:26.1]} 35... Ng6 {[%clk
0:00:32.8]} 36. Qd6+ {[%clk 0:00:23.8]} 36... Kg7 {[%clk 0:00:32.3]} 37. Qd5
{[%clk 0:00:22]} 37... Qb2 {[%clk 0:00:30.3]} 38. f4 {[%clk 0:00:12.6]} 38...
Qf2 {[%clk 0:00:21.2]} 39. Qxh5 {[%clk 0:00:12.1]} 39... Nxf4 {[%clk 0:00:18.3]}
40. Nf5+ {[%clk 0:00:12.3]} 40... Kf6 {[%clk 0:00:18.1]} 41. exf4 {[%clk
0:00:12.7]} 41... Qxf4+ {[%clk 0:00:17.8]} 42. Ng3 {[%clk 0:00:13]} 1-0

[Event "*** Titled Tuesday Blitz"]
[Site "Chess.com"]
[Date "2020.12.01"]
[Round "11"]
[White "SergeiAza"]
[Black "rasmussvane"]
[Result "0-1"]
[WhiteElo "2824"]
[BlackElo "2905"]
[TimeControl "180+1"]
[EndTime "12:05:58 PST"]
[Termination "rasmussvane won by resignation"]

1. e4 {[%clk 0:03:00.9]} 1... c6 {[%clk 0:03:00]} 2. d4 {[%clk 0:02:57.5]} 2...
d5 {[%clk 0:03:00.9]} 3. e5 {[%clk 0:02:58.1]} 3... Bf5 {[%clk 0:03:00.2]} 4.
Nf3 {[%clk 0:02:58.6]} 4... e6 {[%clk 0:03:00.4]} 5. Be2 {[%clk 0:02:59.3]} 5...
Ne7 {[%clk 0:03:00.3]} 6. O-O {[%clk 0:02:59.1]} 6... Ng6 {[%clk 0:03:00.6]} 7.
Re1 {[%clk 0:02:58.8]} 7... Nd7 {[%clk 0:02:59.4]} 8. Nbd2 {[%clk 0:02:57.4]}
8... f6 {[%clk 0:02:55.6]} 9. c4 {[%clk 0:02:55]} 9... Be7 {[%clk 0:02:53.5]}
10. Nf1 {[%clk 0:02:40.1]} 10... O-O {[%clk 0:02:49.5]} 11. exf6 {[%clk
0:02:34.8]} 11... Bxf6 {[%clk 0:02:45.4]} 12. Ng3 {[%clk 0:02:35.1]} 12... Be4
{[%clk 0:02:36.5]} 13. Be3 {[%clk 0:02:14.1]} 13... Nb6 {[%clk 0:02:17.7]} 14.
b3 {[%clk 0:01:57.5]} 14... Bxf3 {[%clk 0:02:11.2]} 15. Bxf3 {[%clk 0:01:57.3]}
15... dxc4 {[%clk 0:02:11.9]} 16. Bg4 {[%clk 0:01:47.4]} 16... Re8 {[%clk
0:01:58.4]} 17. Ne4 {[%clk 0:01:40.8]} 17... c3 {[%clk 0:01:47.1]} 18. Qd3
{[%clk 0:01:04.1]} 18... Nd5 {[%clk 0:01:42.8]} 19. Nc5 {[%clk 0:01:00.7]} 19...
Qc8 {[%clk 0:01:38.9]} 20. Rad1 {[%clk 0:00:53.3]} 20... b6 {[%clk 0:01:35.7]}
21. Ne4 {[%clk 0:00:50.3]} 21... c5 {[%clk 0:00:48.7]} 22. Nd6 {[%clk
0:00:48.2]} 22... Qc7 {[%clk 0:00:41.9]} 23. Nxe8 {[%clk 0:00:47.4]} 23... Rxe8
{[%clk 0:00:42.8]} 24. dxc5 {[%clk 0:00:46.1]} 24... Nxe3 {[%clk 0:00:41.3]} 25.
Qxe3 {[%clk 0:00:40.2]} 25... bxc5 {[%clk 0:00:21.9]} 26. Qg3 {[%clk 0:00:28.4]}
26... Qf7 {[%clk 0:00:17.3]} 27. Bh5 {[%clk 0:00:23.3]} 27... Bd4 {[%clk
0:00:16.6]} 28. Re2 {[%clk 0:00:21.2]} 28... Qf5 {[%clk 0:00:14.2]} 29. Bg4
{[%clk 0:00:18.9]} 29... Qf6 {[%clk 0:00:11.2]} 30. Rde1 {[%clk 0:00:18.3]}
30... e5 {[%clk 0:00:11.3]} 31. Bh5 {[%clk 0:00:17.7]} 31... Rf8 {[%clk
0:00:10.5]} 32. Bxg6 {[%clk 0:00:17.3]} 32... hxg6 {[%clk 0:00:11.4]} 33. h3
{[%clk 0:00:15.8]} 33... Qf5 {[%clk 0:00:10.2]} 34. Kf1 {[%clk 0:00:14]} 34...
a5 {[%clk 0:00:09.9]} 35. f3 {[%clk 0:00:11.9]} 35... Qd3 {[%clk 0:00:08.8]} 36.
Qg4 {[%clk 0:00:11]} 36... Rf4 {[%clk 0:00:06.5]} 37. Qe6+ {[%clk 0:00:10.1]}
37... Kh7 {[%clk 0:00:06.7]} 38. Qc4 {[%clk 0:00:11]} 38... Rxf3+ {[%clk
0:00:06.6]} 39. gxf3 {[%clk 0:00:09]} 39... Qxf3+ {[%clk 0:00:07.5]} 0-1

[Event "*** Titled Tuesday Blitz"]
[Site "Chess.com"]
[Date "2020.12.01"]
[Round "11"]
[White "Alindsay211"]
[Black "glebus008"]
[Result "0-1"]
[WhiteElo "2369"]
[BlackElo "2252"]
[TimeControl "180+1"]
[EndTime "12:06:00 PST"]
[Termination "glebus008 won on time"]

1. Nf3 {[%clk 0:03:00.9]} 1... d5 {[%clk 0:02:59.2]} 2. d4 {[%clk 0:02:59.5]}
2... Nf6 {[%clk 0:02:57.5]} 3. g3 {[%clk 0:02:54.2]} 3... e6 {[%clk 0:02:53]} 4.
Bg2 {[%clk 0:02:52.1]} 4... Be7 {[%clk 0:02:53.4]} 5. O-O {[%clk 0:02:48.9]}
5... O-O {[%clk 0:02:54.3]} 6. Nbd2 {[%clk 0:02:47.3]} 6... c5 {[%clk
0:02:51.9]} 7. dxc5 {[%clk 0:02:42.6]} 7... Bxc5 {[%clk 0:02:48.7]} 8. Re1
{[%clk 0:02:39]} 8... Nc6 {[%clk 0:02:46]} 9. c3 {[%clk 0:02:35.9]} 9... e5
{[%clk 0:02:06.9]} 10. e3 {[%clk 0:02:18.4]} 10... e4 {[%clk 0:02:04.1]} 11. Nd4
{[%clk 0:02:15.5]} 11... Ne5 {[%clk 0:02:03.6]} 12. N2b3 {[%clk 0:02:13.2]}
12... Bg4 {[%clk 0:01:56.4]} 13. f3 {[%clk 0:01:47.7]} 13... exf3 {[%clk
0:01:55.4]} 14. Bxf3 {[%clk 0:01:36.7]} 14... Nxf3+ {[%clk 0:01:54.6]} 15. Nxf3
{[%clk 0:01:35.4]} 15... Bb6 {[%clk 0:01:51.1]} 16. Nbd4 {[%clk 0:01:30.8]}
16... Ne4 {[%clk 0:01:50.5]} 17. Rf1 {[%clk 0:01:25.4]} 17... Ng5 {[%clk
0:01:45.4]} 18. Qd3 {[%clk 0:01:07.1]} 18... Bxd4 {[%clk 0:01:21]} 19. Nxd4
{[%clk 0:01:05.8]} 19... Re8 {[%clk 0:01:13.3]} 20. Rf4 {[%clk 0:00:47.7]} 20...
Nh3+ {[%clk 0:01:12.1]} 21. Kg2 {[%clk 0:00:43.6]} 21... Nxf4+ {[%clk 0:01:13]}
22. exf4 {[%clk 0:00:42.8]} 22... Qe7 {[%clk 0:01:05.7]} 23. Bd2 {[%clk
0:00:36.6]} 23... Qe4+ {[%clk 0:01:03]} 24. Qxe4 {[%clk 0:00:34.9]} 24... Rxe4
{[%clk 0:00:56.1]} 25. Re1 {[%clk 0:00:31.7]} 25... Rae8 {[%clk 0:00:53.8]} 26.
Rxe4 {[%clk 0:00:29.4]} 26... Rxe4 {[%clk 0:00:54.7]} 27. Kf2 {[%clk 0:00:28.3]}
27... f6 {[%clk 0:00:47.8]} 28. Be3 {[%clk 0:00:23.3]} 28... Kf7 {[%clk
0:00:42.8]} 29. Nc2 {[%clk 0:00:21.1]} 29... b6 {[%clk 0:00:40.4]} 30. Nd4
{[%clk 0:00:20.7]} 30... Bd7 {[%clk 0:00:37.8]} 31. Kf3 {[%clk 0:00:19.6]} 31...
h5 {[%clk 0:00:35.5]} 32. Bf2 {[%clk 0:00:13.8]} 32... Bg4+ {[%clk 0:00:31.7]}
33. Kg2 {[%clk 0:00:12.9]} 33... h4 {[%clk 0:00:30.6]} 34. Kf1 {[%clk
0:00:06.9]} 34... h3 {[%clk 0:00:28.9]} 35. Bg1 {[%clk 0:00:05.1]} 35... Bd1
{[%clk 0:00:22.5]} 36. Bf2 {[%clk 0:00:04.1]} 36... g5 {[%clk 0:00:19.7]} 37.
fxg5 {[%clk 0:00:02.7]} 37... fxg5 {[%clk 0:00:20.6]} 38. Be1 {[%clk 0:00:03.1]}
38... Ba4 {[%clk 0:00:16]} 39. Bd2 {[%clk 0:00:02.8]} 39... Kg6 {[%clk
0:00:14.4]} 40. Kf2 {[%clk 0:00:01.5]} 40... Bd1 {[%clk 0:00:14]} 0-1